bitfinex/quotes_SOLUSD_20240530
["timestamp","ask_amount","ask_price","bid_price","bid_amount"]
[1717091032113,21.12372235,172.26,172.13,60.0]
[1717091032514,0.68372235,172.25,172.13,60.0]
[1717091032889,0.68372235,172.25,172.17,60.0]
[1717091033226,0.68372235,172.25,172.19,60.0]
[1717091033523,6.99782235,172.25,172.19,60.0]
[1717091034293,17.51,172.23,172.19,60.0]
[1717091035224,17.51,172.23,172.17,60.0]
[1717091035713,6.99782235,172.25,172.17,60.0]
[1717091036015,17.51,172.22,172.17,60.0]
[1717091036202,17.51,172.22,172.11,17.69]
[1717091036399,17.51,172.22,172.18,60.0]
[1717091037295,23.9404,172.22,172.14,60.0]
[1717091038016,23.9404,172.22,172.17,60.0]
[1717091038194,23.9404,172.22,172.15,60.0]
[1717091038394,17.51,172.19,172.14,60.0]
[1717091039901,23.9715,172.19,172.14,60.0]
[1717091040101,23.9715,172.19,172.12,60.0]
[1717091040688,23.9715,172.19,172.14,60.0]
[1717091042106,21.9715,172.19,172.14,60.0]
[1717091042394,6.0883,172.18,172.14,60.0]
[1717091043290,6.0883,172.18,172.12,60.0]
[1717091043711,6.0883,172.18,172.1,0.42295001]
[1717091043712,17.51,172.16,172.1,0.42295001]
[1717091043891,23.9715,172.13,172.1,0.42295001]
[1717091044090,6.4615,172.12,172.1,0.42295001]
[1717091044608,23.099,172.11,172.1,0.36135001]
[1717091044919,23.099,172.11,172.1,0.34586123]
[1717091045105,40.609,172.11,172.1,0.34586123]
[1717091046099,40.609,172.11,172.03,60.0]
[1717091046297,6.1247,172.03,171.99,60.0]
[1717091046501,6.1247,172.04,171.97,60.0]
[1717091046805,6.1247,172.04,171.99,60.0]
[1717091047199,17.51,172.02,171.97,60.0]
[1717091047399,6.483,172.01,171.97,60.0]
[1717091047596,17.51,171.99,171.94,60.0]
[1717091048103,17.51,171.99,171.98,60.0]
[1717091048418,6.3523,172.03,171.98,60.0]
[1717091048597,16.0815,172.06,172.0,60.0]
[1717091048915,16.0815,172.06,171.98,60.0]
[1717091049326,16.0815,172.06,171.94,60.0]
[1717091049527,16.0815,172.06,171.97,60.0]
[1717091049898,16.0815,172.06,171.99,60.0]
[1717091050110,16.0815,172.06,171.97,60.0]
[1717091050430,16.0815,172.06,171.94,60.0]
[1717091050619,20.47,172.03,171.94,60.0]
[1717091050823,20.47,172.03,171.96,60.0]
[1717091051022,16.0815,172.06,171.98,60.0]
[1717091051392,16.0815,172.06,171.97,60.0]
[1717091051705,16.0815,172.06,171.95,60.0]
[1717091051900,16.0815,172.06,171.93,0.793509]
[1717091052208,0.68372235,172.05,171.93,0.793509]
[1717091053423,6.4661,172.04,171.93,0.793509]
[1717091053807,20.47,171.99,171.93,0.793509]
[1717091054725,21.5318,171.95,171.93,0.793509]
[1717091054930,0.68372235,172.05,171.96,60.0]
[1717091055262,0.68372235,172.05,171.93,0.793509]
[1717091055263,0.68372235,172.05,171.97,60.0]
[1717091055837,0.68372235,172.05,171.99,60.0]
[1717091056037,0.68372235,172.05,171.93,0.793509]
[1717091056038,20.47,172.06,172.01,60.0]
[1717091056237,6.3915,172.05,172.01,60.0]
[1717091056409,36.6017,172.06,171.97,60.0]
[1717091056945,36.6017,172.06,171.93,0.793509]
[1717091057164,20.47,172.01,171.93,0.793509]
[1717091057609,6.4991,172.05,171.93,0.793509]
[1717091057610,6.6025,172.04,171.98,60.0]
[1717091057923,6.6025,172.04,172.0,60.0]
[1717091058114,6.3129,172.05,171.98,60.0]
[1717091059353,6.3129,172.05,171.93,0.793509]
[1717091059354,6.3129,172.05,171.94,60.0]
[1717091059657,6.3129,172.05,171.93,0.793509]
[1717091060619,6.3129,172.05,171.94,60.0]
[1717091061019,6.3129,172.05,171.96,60.0]
[1717091062149,6.3129,172.05,171.94,60.0]
[1717091062450,6.3129,172.05,171.96,60.0]
[1717091062933,6.3129,172.05,171.94,60.0]
[1717091063448,6.3129,172.05,171.93,0.793509]
[1717091064734,6.3129,172.05,171.93,60.793509]
[1717091065837,6.3129,172.05,171.95,60.0]
[1717091066961,6.3129,172.05,171.93,60.793509]
[1717091067574,0.68372235,172.04,171.93,60.793509]
[1717091067872,22.3564,172.0,171.93,0.793509]
[1717091068150,22.3564,172.0,171.89,60.3639847]
[1717091068367,22.3564,171.93,171.89,0.3639847]
[1717091068665,21.3452,171.92,171.89,0.3639847]
[1717091068959,6.2773,171.9,171.89,0.3639847]
[1717091070258,21.3192,171.9,171.89,0.3639847]
[1717091071771,20.5,171.99,171.89,0.3639847]
[1717091071949,6.3236,171.93,171.89,60.3639847]
[1717091072143,6.3236,171.97,171.89,60.3639847]
[1717091072364,7.00732235,171.97,171.89,60.3639847]
[1717091073669,7.00732235,171.97,171.89,0.3639847]
[1717091075966,7.00732235,171.97,171.92,60.0]
[1717091076666,7.00732235,171.97,171.9,60.0]
[1717091076874,7.00732235,171.97,171.89,60.3639847]
[1717091077051,7.00732235,171.97,171.91,60.0]
[1717091077252,5.36472624,172.02,171.91,60.0]
[1717091077559,6.73612235,172.03,171.94,60.0]
[1717091077760,6.73612235,172.03,171.97,60.0]
[1717091078145,6.73612235,172.03,171.95,60.0]
[1717091078343,6.73612235,172.03,171.98,60.0]
[1717091078855,0.68372235,172.06,172.0,60.0]
[1717091079869,0.68372235,172.06,172.02,60.0]
[1717091080451,0.68372235,172.06,172.04,60.0]
[1717091080661,20.5,172.08,172.04,60.0]
[1717091082374,20.5,172.08,172.02,60.0]
[1717091083166,20.5,172.08,172.04,60.0]
[1717091083667,20.5,172.08,172.06,60.0]
[1717091083866,0.68372235,172.11,172.06,60.0]
[1717091084364,6.5054,172.12,172.08,60.0]
[1717091084564,0.68372235,172.14,172.08,60.0]
[1717091089048,0.68372235,172.14,172.06,60.0]
[1717091089966,0.68372235,172.14,172.1,60.0]
[1717091090169,0.68372235,172.17,172.1,60.0]
[1717091092460,0.68372235,172.17,172.12,60.0]
[1717091092860,20.5,172.18,172.14,60.0]
[1717091094355,20.5,172.18,172.16,60.0]
[1717091094576,6.76772235,172.23,172.16,60.0]
[1717091095086,0.68372235,172.23,172.18,60.0]
[1717091096376,21.8253,172.22,172.13,60.0]
[1717091096588,20.5,172.19,172.09,60.0]
[1717091096959,20.5,172.14,172.09,60.0]
[1717091097160,20.5,172.14,172.13,60.0]
[1717091100303,20.5,172.14,172.09,60.0]
[1717091100697,20.5,172.14,172.12,60.0]
[1717091100879,20.5,172.19,172.16,60.0]
[1717091101201,22.7075,172.18,172.11,60.0]
[1717091101504,22.7075,172.18,172.13,60.0]
[1717091101505,20.5,172.14,172.13,60.0]
[1717091101879,20.5,172.21,172.17,60.0]
[1717091102078,20.5,172.21,172.15,60.0]
[1717091102298,20.5,172.21,172.2,60.0]
[1717091102478,0.68372235,172.23,172.07,8.6007]
[1717091102479,0.68372235,172.23,172.17,60.0]
[1717091102682,0.68372235,172.23,172.16,60.0]
[1717091103292,0.68372235,172.27,172.24,60.0]
[1717091103502,20.5,172.26,172.24,60.0]
[1717091104314,6.3456,172.34,172.28,60.0]
[1717091104606,6.3456,172.34,172.16,16.3202]
[1717091104607,26.8456,172.34,172.3,60.0]
[1717091104822,20.5,172.34,172.3,60.0]
[1717091104975,20.5,172.34,172.32,60.0]
[1717091105601,0.793509,172.36,172.34,60.0]
[1717091105916,0.793509,172.36,172.32,60.0]
[1717091106119,0.793509,172.36,172.34,60.0]
[1717091106486,0.793509,172.36,172.3,60.0]
[1717091106913,20.5,172.32,172.24,6.1387]
[1717091107106,20.5,172.32,172.26,60.0]
[1717091107609,6.16,172.35,172.26,60.0]
[1717091107818,20.5,172.31,172.26,60.0]
[1717091108113,6.6082,172.29,172.24,60.0]
[1717091109086,6.5416,172.3,172.21,60.0]
[1717091109691,20.5,172.26,172.21,60.0]
[1717091110097,22.1355,172.3,172.23,60.0]
[1717091110306,20.5,172.27,172.21,60.0]
[1717091110513,20.5,172.27,172.23,60.0]
[1717091111105,20.5,172.27,172.25,60.0]
[1717091111424,26.8682,172.27,172.21,60.0]
[1717091111607,26.8682,172.27,172.19,60.0]
[1717091111939,20.5,172.22,172.19,60.0]
[1717091112092,6.3682,172.21,172.17,60.0]
[1717091112508,6.0607,172.2,172.17,60.0]
[1717091113691,20.5,172.22,172.17,60.0]
[1717091114131,6.0033,172.21,172.17,60.0]
[1717091114326,20.5,172.22,172.17,60.0]
[1717091114536,6.2246,172.2,172.09,17.69]
[1717091114738,20.5,172.17,172.09,17.69]
[1717091115047,26.7246,172.17,172.09,60.0]
[1717091115325,20.5,172.12,172.07,60.0]
[1717091116123,20.5,172.12,172.05,60.0]
[1717091116320,20.5,172.12,172.07,60.0]
[1717091117738,20.5,172.12,172.1,60.0]
[1717091118519,20.5,172.12,172.03,6.3018]
[1717091118520,20.5,172.17,172.15,60.0]
[1717091118726,20.5,172.17,172.09,17.69]
[1717091118727,0.68372235,172.23,172.17,60.0]
[1717091119023,20.5,172.23,172.18,60.0]
[1717091119230,20.5,172.23,172.16,60.0]
[1717091119412,20.5,172.23,172.18,60.0]
[1717091119614,26.9672,172.26,172.18,60.0]
[1717091119838,26.9672,172.26,172.16,60.0]
[1717091120011,26.9672,172.26,172.12,24.0314]
[1717091120012,26.9672,172.21,172.14,60.0]
[1717091120214,26.9672,172.21,172.12,60.0]
[1717091120419,26.9672,172.21,172.16,60.0]
[1717091120831,26.9672,172.21,172.14,60.0]
[1717091121132,26.9672,172.21,172.11,60.0]
[1717091121815,42.6029,172.21,172.1,60.0]
[1717091122420,20.5,172.16,172.1,60.0]
[1717091122718,20.5,172.16,172.06,60.0]
[1717091122923,20.5,172.16,172.09,60.0]
[1717091123132,20.5,172.16,172.11,60.0]
[1717091123340,20.5,172.16,172.13,60.0]
[1717091123759,6.4672,172.21,172.15,60.0]
[1717091124044,6.4672,172.21,172.17,60.0]
[1717091124045,20.5,172.21,172.17,60.0]
[1717091124743,20.5,172.21,172.15,60.0]
[1717091125351,20.5,172.21,172.13,60.0]
[1717091125718,20.5,172.21,172.11,60.0]
[1717091126242,20.5,172.21,172.14,60.0]
[1717091126429,20.5,172.21,172.16,60.0]
[1717091126633,26.7111,172.21,172.16,60.0]
[1717091127837,20.5,172.21,172.18,60.0]
[1717091128145,0.68372235,172.24,172.18,60.0]
[1717091129555,0.68372235,172.24,172.16,60.0]
[1717091129760,0.68372235,172.24,172.14,60.0]
[1717091130940,26.5236,172.18,172.14,60.0]
[1717091132029,15.7642,172.17,172.14,60.0]
[1717091132229,15.7642,172.17,172.11,380.9]
[1717091132439,22.4224,172.17,172.09,60.0]
[1717091132650,20.5,172.13,172.06,60.0]
[1717091134153,6.1727,172.12,172.08,60.0]
[1717091134449,15.5541,172.16,172.1,60.0]
[1717091136241,6.1727,172.17,172.13,60.0]
[1717091137450,6.1727,172.17,172.11,60.0]
[1717091138650,6.1727,172.17,172.13,60.0]
[1717091139358,6.1727,172.17,172.11,60.0]
[1717091139546,6.1727,172.17,172.09,60.0]
[1717091139746,6.1727,172.17,172.07,60.0]
[1717091139951,6.1727,172.17,172.05,60.0]
[1717091140137,20.5,172.12,172.08,60.0]
[1717091141554,6.1397,172.22,172.16,60.0]
[1717091141750,6.1397,172.22,172.12,2.1495]
[1717091141751,6.1397,172.22,172.18,60.0]
[1717091141969,6.1397,172.22,172.16,60.0]
[1717091141970,15.3325,172.22,172.16,60.0]
[1717091142145,15.3325,172.22,172.12,17.69]
[1717091142146,26.6397,172.23,172.2,60.0]
[1717091142344,20.5,172.23,172.2,60.0]
[1717091143243,20.5,172.23,172.22,60.0]
[1717091143453,6.82342235,172.27,172.24,60.0]
[1717091143657,0.68372235,172.27,172.24,60.0]
[1717091144741,0.68372235,172.27,172.22,60.0]
[1717091144935,0.68372235,172.27,172.12,380.9]
[1717091144936,20.5,172.28,172.2,60.0]
[1717091145137,20.5,172.23,172.18,60.0]
[1717091145336,20.5,172.23,172.16,60.0]
[1717091148061,20.5,172.23,172.13,60.0]
[1717091148245,23.1674,172.17,172.11,60.0]
[1717091150047,23.1674,172.17,172.13,60.0]
[1717091150252,6.5258,172.17,172.13,60.0]
[1717091151168,6.5258,172.17,172.11,60.0]
[1717091152552,6.5258,172.17,172.09,60.0]
[1717091154573,6.5258,172.17,172.11,60.0]
[1717091155382,6.5258,172.17,172.13,60.0]
[1717091156645,23.0006,172.17,172.09,60.0]
[1717091156867,20.5,172.11,172.05,60.0]
[1717091157173,23.0006,172.17,172.08,60.0]
[1717091158369,23.0006,172.17,172.06,60.0]
[1717091158572,26.5147,172.13,172.09,60.0]
[1717091159766,20.5,172.13,172.11,60.0]
[1717091159971,22.532,172.17,172.11,60.0]
[1717091160149,20.5,172.18,172.13,60.0]
[1717091160461,20.5,172.18,172.11,60.0]
[1717091161370,20.5,172.18,172.13,60.0]
[1717091161871,26.7894,172.18,172.13,60.0]
[1717091162072,6.2894,172.17,172.13,60.0]
[1717091162365,20.5,172.2,172.17,60.0]
[1717091162575,15.4181,172.23,172.19,60.0]
[1717091162777,21.18372235,172.26,172.2,60.0]
[1717091163761,27.31172235,172.26,172.22,60.0]
[1717091164170,21.18372235,172.26,172.22,60.0]
[1717091164587,20.5,172.26,172.24,60.0]
[1717091166783,0.68372235,172.31,172.26,60.0]
[1717091167084,6.2608,172.27,172.2,60.0]
[1717091167294,20.5,172.25,172.2,60.0]
[1717091167466,22.6058,172.24,172.16,60.0]
[1717091167673,22.6058,172.24,172.14,60.0]
[1717091167972,22.6058,172.24,172.1,6.2566]
[1717091167973,6.6416,172.18,172.12,60.0]
[1717091168765,6.6416,172.18,172.09,60.0]
[1717091169360,6.6416,172.18,172.11,60.0]
[1717091169974,6.3404,172.17,172.14,60.0]
[1717091170258,20.5,172.26,172.06,19.8404]
[1717091170259,6.3404,172.23,172.2,60.0]
[1717091170473,6.3404,172.23,172.16,60.0]
[1717091170670,22.2075,172.25,172.15,60.0]
[1717091170970,20.5,172.21,172.19,60.0]
[1717091171163,22.2075,172.25,172.19,60.0]
[1717091171580,6.6385,172.24,172.21,60.0]
[1717091171969,16.0963,172.25,172.17,60.0]
[1717091171970,6.6385,172.25,172.17,60.0]
[1717091173055,6.6385,172.25,172.14,60.0]
[1717091173261,26.9694,172.19,172.14,60.0]
[1717091173456,26.9694,172.19,172.16,60.0]
[1717091175089,26.9694,172.19,172.05,391.4576]
[1717091175090,22.6947,172.18,172.12,60.0]
[1717091175261,6.4794,172.18,172.12,60.0]
[1717091176585,20.5,172.14,172.08,60.0]
[1717091176977,20.5,172.14,172.06,60.0]
[1717091177878,20.5,172.14,172.08,60.0]
[1717091178084,20.5,172.17,172.08,60.0]
[1717091178783,20.5,172.17,172.05,60.0]
[1717091178976,41.0,172.17,172.05,60.0]
[1717091179372,41.0,172.17,172.07,60.0]
[1717091179568,20.5,172.12,172.07,60.0]
[1717091179774,6.3418,172.11,172.07,60.0]
[1717091180289,20.5,172.12,172.09,60.0]
[1717091184781,6.3193,172.15,172.11,60.0]
[1717091184992,0.68372235,172.16,172.13,60.0]
[1717091185179,20.5,172.17,172.13,60.0]
[1717091185384,26.8529,172.17,172.13,60.0]
[1717091185789,20.5,172.17,172.15,60.0]
[1717091185971,6.3529,172.21,172.17,60.0]
[1717091186174,26.8529,172.21,172.17,60.0]
[1717091187203,6.1018,172.2,172.15,60.0]
[1717091187381,36.0726,172.21,172.15,60.0]
[1717091190185,36.0726,172.21,172.13,60.0]
[1717091190576,6.1018,172.22,172.13,60.0]
[1717091190889,0.68372235,172.24,172.1,6.2045]
[1717091190890,20.5,172.23,172.18,60.0]
[1717091191209,21.18372235,172.24,172.18,60.0]
[1717091191707,20.5,172.24,172.2,60.0]
[1717091191881,20.5,172.24,172.18,60.0]
[1717091191882,26.9732,172.24,172.18,60.0]
[1717091192576,26.9732,172.24,172.15,60.0]
[1717091193279,26.9732,172.24,172.17,60.0]
[1717091193479,6.4732,172.24,172.17,60.0]
[1717091194180,6.4148,172.23,172.19,60.0]
[1717091194798,23.2076,172.25,172.14,60.0]
[1717091195107,20.5,172.2,172.14,60.0]
[1717091196205,20.5,172.2,172.18,60.0]
[1717091196387,23.2076,172.25,172.18,60.0]
[1717091199205,23.2076,172.25,172.16,60.0]
[1717091199506,23.2076,172.25,172.18,60.0]
[1717091200575,23.2076,172.25,172.16,60.0]
[1717091200791,6.5556,172.19,172.14,60.0]
[1717091201002,20.5,172.21,172.14,60.0]
[1717091201206,6.5556,172.2,172.14,60.0]
[1717091201509,6.5556,172.2,172.12,60.0]
[1717091201709,6.5556,172.19,172.15,60.0]
[1717091202009,20.5,172.2,172.17,60.0]
[1717091202695,20.5,172.2,172.15,60.0]
[1717091202899,26.9153,172.2,172.15,60.0]
[1717091203705,26.9153,172.2,172.17,60.0]
[1717091204204,26.9153,172.2,172.15,60.0]
[1717091204391,26.9153,172.2,172.17,60.0]
[1717091206506,6.4658,172.19,172.1,17.69]
[1717091206715,6.4658,172.19,172.06,634.1]
[1717091206716,6.4658,172.19,172.12,60.0]
[1717091207103,6.4658,172.14,172.12,60.0]
[1717091212414,6.4723,172.14,172.12,60.0]
[1717091212609,6.2079,172.13,172.08,60.0]
[1717091212800,6.2079,172.14,172.06,60.0]
[1717091214314,20.5,172.1,172.06,60.0]
[1717091214618,26.7549,172.1,172.05,60.0]
[1717091215510,26.7549,172.1,172.03,60.0]
[1717091217800,26.7549,172.1,172.06,60.0]
[1717091218005,22.9937,172.09,172.0,60.0]
[1717091218201,27.0377,172.05,172.0,60.0]
[1717091220345,20.5,172.05,171.98,60.0]
[1717091220506,6.3155,172.04,171.96,60.0]
[1717091220910,20.5,172.08,171.93,60.0]
[1717091220911,6.0754,171.99,171.93,60.0]
[1717091221225,6.0754,171.99,171.9,380.9]
[1717091221226,6.0754,171.99,171.96,60.0]
[1717091221429,20.5,172.0,171.96,60.0]
[1717091221629,20.5,172.0,171.94,60.0]
[1717091221821,20.5,172.0,171.97,60.0]
[1717091222412,17.55,171.98,171.97,60.0]
[1717091223311,17.55,171.98,171.95,60.0]
[1717091223511,17.55,171.96,171.95,60.0]
[1717091223711,17.55,171.96,171.93,60.0]
[1717091224209,17.55,171.96,171.91,60.0]
[1717091224411,17.55,171.92,171.91,60.0]
[1717091226111,17.55,171.92,171.89,60.3639847]
[1717091226637,24.1124,171.92,171.89,0.3639847]
[1717091226810,6.5624,171.91,171.89,0.3639847]
[1717091227016,6.5624,171.91,171.85,60.0]
[1717091227017,24.1124,171.9,171.85,60.0]
[1717091227252,17.55,171.86,171.83,60.0]
[1717091227621,17.55,171.86,171.85,60.0]
[1717091227920,17.55,171.86,171.84,60.0]
[1717091228146,24.1124,171.86,171.81,60.0]
[1717091228349,6.5624,171.86,171.81,60.0]
[1717091229027,20.51,171.88,171.85,60.0]
[1717091229337,20.51,171.88,171.83,60.0]
[1717091229517,20.51,171.88,171.85,60.0]
[1717091230233,20.51,171.88,171.83,60.0]
[1717091230534,26.5296,171.88,171.83,60.0]
[1717091230832,20.51,171.88,171.83,60.0]
[1717091231024,21.6468,171.87,171.83,60.0]
[1717091231218,21.6468,171.87,171.81,60.0]
[1717091232943,21.6468,171.87,171.79,60.0]
[1717091233123,21.6468,171.87,171.77,60.793509]
[1717091233433,21.6468,171.87,171.79,60.0]
[1717091233636,21.6468,171.87,171.77,0.793509]
[1717091233942,20.51,171.9,171.77,0.793509]
[1717091233943,6.4239,171.81,171.77,0.793509]
[1717091234151,6.655,171.81,171.77,0.793509]
[1717091234356,6.655,171.8,171.77,0.793509]
[1717091235059,6.0989,171.79,171.77,0.793509]
[1717091235269,20.51,171.82,171.77,60.793509]
[1717091235554,20.51,171.82,171.78,60.0]
[1717091235555,26.6089,171.82,171.78,60.0]
[1717091235755,36.2316,171.82,171.77,0.793509]
[1717091235935,6.0989,171.81,171.79,60.0]
[1717091236559,20.51,171.82,171.79,60.0]
[1717091236733,6.143,171.81,171.77,0.793509]
[1717091237040,6.143,171.8,171.77,0.793509]
[1717091237557,6.2506,171.79,171.77,0.793509]
[1717091237731,6.2506,171.78,171.77,0.793509]
[1717091237938,6.2506,171.78,171.72,60.0]
[1717091237939,21.3802,171.78,171.72,60.0]
[1717091238151,22.9217,171.76,171.7,0.03622232]
[1717091238355,16.3541,171.76,171.7,0.03622232]
[1717091238567,6.5676,171.75,171.71,60.0]
[1717091239283,20.51,171.77,171.7,60.03622232]
[1717091239565,6.663,171.79,171.7,60.03622232]
[1717091239752,6.663,171.79,171.72,60.0]
[1717091240142,20.51,171.78,171.72,60.0]
[1717091240365,20.51,171.78,171.7,60.03622232]
[1717091240945,6.2026,171.77,171.71,60.0]
[1717091241363,6.2026,171.77,171.7,0.03622232]
[1717091241653,6.2026,171.77,171.71,60.0]
[1717091242059,6.2026,171.77,171.7,0.03622232]
[1717091242876,22.2622,171.72,171.7,0.03622232]
[1717091243041,22.2622,171.71,171.7,0.03622232]
[1717091243536,22.2622,171.71,171.64,60.0]
[1717091243762,22.2622,171.71,171.61,60.0]
[1717091244077,20.51,171.68,171.64,60.0]
[1717091244368,20.51,171.68,171.65,60.0]
[1717091244573,20.51,171.68,171.64,60.0]
[1717091244735,6.0134,171.75,171.69,60.0]
[1717091244940,6.0134,171.75,171.64,19.8456]
[1717091244941,6.0134,171.75,171.67,60.0]
[1717091245769,20.51,171.77,171.71,60.0]
[1717091246176,20.51,171.77,171.7,60.0]
[1717091246465,20.51,171.77,171.68,60.0]
[1717091247652,20.51,171.77,171.7,60.0]
[1717091248851,20.51,171.77,171.68,60.0]
[1717091249241,20.51,171.77,171.66,60.0]
[1717091249446,20.51,171.72,171.66,60.0]
[1717091250455,6.0134,171.79,171.72,60.0]
[1717091250866,6.0134,171.79,171.74,60.0]
[1717091251065,6.0607,171.78,171.72,60.0]
[1717091251260,16.5381,171.85,171.78,60.0]
[1717091251649,16.5381,171.85,171.8,60.0]
[1717091251852,6.4454,171.84,171.8,60.0]
[1717091252071,26.9554,171.87,171.82,60.0]
[1717091252260,20.51,171.87,171.82,60.0]
[1717091252458,20.51,171.87,171.8,60.0]
[1717091252459,26.9554,171.87,171.8,60.0]
[1717091252663,26.9554,171.87,171.78,60.0]
[1717091253268,26.9554,171.87,171.76,60.0]
[1717091253773,26.9554,171.87,171.78,60.0]
[1717091253961,26.9554,171.87,171.76,60.0]
[1717091254159,26.9554,171.87,171.77,60.0]
[1717091254677,26.9554,171.87,171.79,60.0]
[1717091255059,6.4454,171.87,171.82,60.0]
[1717091255277,6.4454,171.87,171.81,60.0]
[1717091255853,20.51,171.9,171.84,60.0]
[1717091256275,26.6234,171.9,171.85,60.0]
[1717091256577,6.1134,171.89,171.85,60.0]
[1717091256973,22.0647,171.88,171.81,60.0]
[1717091257660,22.0647,171.88,171.83,60.0]
[1717091257865,6.1134,171.88,171.81,60.0]
[1717091258678,6.1134,171.88,171.79,60.0]
[1717091259075,15.9513,171.92,171.85,60.0]
[1717091259076,22.0647,171.92,171.85,60.0]
[1717091259288,42.5747,171.92,171.85,60.0]
[1717091259489,22.0647,171.92,171.85,60.0]
[1717091259683,6.1134,171.92,171.87,60.0]
[1717091260192,22.0647,171.96,171.89,60.0]
[1717091261089,22.0647,171.96,171.87,60.0]
[1717091261270,22.0647,171.96,171.84,60.0]
[1717091262395,17.58,171.87,171.84,60.0]
[1717091263196,22.0647,171.96,171.86,60.0]
[1717091263387,22.0647,171.96,171.79,391.6325]
[1717091263388,6.2671,171.96,171.91,60.0]
[1717091263567,17.58,171.94,171.91,60.0]
[1717091264284,17.58,171.94,171.93,60.0]
[1717091264686,22.54,172.0,171.95,60.0]
[1717091264888,17.58,171.98,171.95,60.0]
[1717091265106,17.58,171.98,171.93,60.0]
[1717091265597,22.54,172.0,171.93,60.0]
[1717091265970,22.54,172.0,171.95,60.0]
[1717091265971,17.58,171.98,171.95,60.0]
[1717091266882,17.58,171.98,171.89,2.1525]
[1717091266883,24.1987,171.98,171.93,60.0]
[1717091269501,17.58,171.95,171.91,60.0]
[1717091270211,6.2384,171.94,171.91,60.0]
[1717091270509,17.58,171.92,171.89,60.0]
[1717091271186,17.58,171.92,171.84,6.4755]
[1717091271187,17.58,171.92,171.87,60.0]
[1717091271780,23.6947,171.92,171.87,60.0]
[1717091271982,17.58,171.89,171.85,60.0]
[1717091272499,23.6947,171.89,171.83,60.0]
[1717091273014,17.58,171.86,171.83,60.0]
[1717091273514,17.58,171.86,171.8,2.1536]
[1717091273515,17.58,171.86,171.85,60.0]
[1717091273901,6.1147,171.89,171.87,60.0]
[1717091274093,17.58,171.88,171.87,60.0]
[1717091274412,17.58,171.88,171.85,60.0]
[1717091274599,17.58,171.88,171.87,60.0]
[1717091275612,6.3311,171.94,171.87,60.0]
[1717091275921,17.58,171.9,171.87,60.0]
[1717091276407,6.3311,171.94,171.87,60.0]
[1717091277316,6.3311,171.94,171.88,45.0]
[1717091278024,6.3311,171.94,171.89,60.0]